[Event "Titled Tuesday Blitz December 13 Late 2022"]
[White "Janaszak, Dawid"]
[Black "Adury, Anant"]
[WhiteFideId "1119206"]
[BlackFideId "30964687"]
[WhiteElo "2220"]
[BlackElo "2153"]
[Result "0-1"]
[Round "01"]
[TimeControl "180+1"]
[Date "2022.12.14"]
[WhiteClock "0:00:10"]
[BlackClock "0:00:08"]

1. e4 {[%clk 0:02:59]}  d6 {[%clk 0:02:57]} 2. Nc3 {[%clk 0:02:59]}  e5 {[%clk 0:02:56]} 3. Nge2 {[%clk 0:02:57]}  Nf6 {[%clk 0:02:56]} 4. g3 {[%clk 0:02:57]}  Nc6 {[%clk 0:02:57]} 5. Bg2 {[%clk 0:02:57]}  Bg4 {[%clk 0:02:56]} 6. h3 {[%clk 0:02:56]}  Be6 {[%clk 0:02:56]} 7. d4 {[%clk 0:02:51]}  exd4 {[%clk 0:02:46]} 8. Nxd4 {[%clk 0:02:52]}  Nxd4 {[%clk 0:02:46]} 9. Qxd4 {[%clk 0:02:52]}  Be7 {[%clk 0:02:46]} 10. Be3 {[%clk 0:02:44]}  O-O {[%clk 0:02:46]} 11. O-O {[%clk 0:02:39]}  Nd7 {[%clk 0:02:45]} 12. f4 {[%clk 0:02:38]}  Bf6 {[%clk 0:02:41]} 13. Qd2 {[%clk 0:02:36]}  Nb6 {[%clk 0:02:42]} 14. b3 {[%clk 0:02:33]}  Re8 {[%clk 0:02:37]} 15. Rad1 {[%clk 0:02:27]}  Qe7 {[%clk 0:02:01]} 16. Bd4 {[%clk 0:02:21]}  Bxd4+ {[%clk 0:02:01]} 17. Qxd4 {[%clk 0:02:22]}  f6 {[%clk 0:01:57]} 18. Kh2 {[%clk 0:02:19]}  Rad8 {[%clk 0:01:57]} 19. Rfe1 {[%clk 0:02:18]}  Qf7 {[%clk 0:01:53]} 20. a4 {[%clk 0:02:15]}  a6 {[%clk 0:01:46]} 21. a5 {[%clk 0:02:14]}  Nd7 {[%clk 0:01:46]} 22. Nd5 {[%clk 0:02:07]}  Bxd5 {[%clk 0:01:46]} 23. exd5 {[%clk 0:02:07]}  Rxe1 {[%clk 0:01:44]} 24. Rxe1 {[%clk 0:02:07]}  Re8 {[%clk 0:01:43]} 25. Re6 {[%clk 0:02:07]}  Nf8 {[%clk 0:01:40]} 26. f5 {[%clk 0:01:56]}  Nxe6 {[%clk 0:01:29]} 27. dxe6 {[%clk 0:01:55]}  Qe7 {[%clk 0:01:30]} 28. Bxb7 {[%clk 0:01:52]}  g6 {[%clk 0:01:30]} 29. g4 {[%clk 0:01:40]}  gxf5 {[%clk 0:01:30]} 30. gxf5 {[%clk 0:01:40]}  d5 {[%clk 0:01:15]} 31. Qxd5 {[%clk 0:01:28]}  Rd8 {[%clk 0:01:15]} 32. Qg2+ {[%clk 0:01:23]}  Kh8 {[%clk 0:01:13]} 33. Be4 {[%clk 0:00:51]}  Qd6+ {[%clk 0:01:11]} 34. Qg3 {[%clk 0:00:51]}  Qd2+ {[%clk 0:01:11]} 35. Bg2 {[%clk 0:00:46]}  Rg8 {[%clk 0:01:04]} 36. Qf3 {[%clk 0:00:37]}  Qxc2 {[%clk 0:00:57]} 37. e7 {[%clk 0:00:35]}  Qd2 {[%clk 0:00:57]} 38. Qe4 {[%clk 0:00:24]}  Qd6+ {[%clk 0:00:36]} 39. Kh1 {[%clk 0:00:24]}  Qd1+ {[%clk 0:00:36]} 40. Kh2 {[%clk 0:00:23]}  Qd6+ {[%clk 0:00:33]} 41. Kh1 {[%clk 0:00:24]}  Re8 {[%clk 0:00:32]} 42. Qe6 {[%clk 0:00:16]}  Qxe6 {[%clk 0:00:27]} 43. fxe6 {[%clk 0:00:17]}  Rxe7 {[%clk 0:00:27]} 44. Bd5 {[%clk 0:00:17]}  f5 {[%clk 0:00:26]} 45. Bc4 {[%clk 0:00:17]}  Kg7 {[%clk 0:00:27]} 46. Kg2 {[%clk 0:00:17]}  Kf6 {[%clk 0:00:27]} 47. Bxa6 {[%clk 0:00:16]}  Rxe6 {[%clk 0:00:27]} 48. Bb7 {[%clk 0:00:17]}  Re2+ {[%clk 0:00:17]} 49. Kf1 {[%clk 0:00:17]}  Ra2 {[%clk 0:00:17]} 50. b4 {[%clk 0:00:17]}  c5 {[%clk 0:00:16]} 51. bxc5 {[%clk 0:00:14]}  Rxa5 {[%clk 0:00:16]} 52. c6 {[%clk 0:00:14]}  Rc5 {[%clk 0:00:16]} 53. Kf2 {[%clk 0:00:14]}  Rc3 {[%clk 0:00:17]} 54. h4 {[%clk 0:00:13]}  Ke7 {[%clk 0:00:17]} 55. Ke2 {[%clk 0:00:13]}  Kd6 {[%clk 0:00:17]} 56. Kf2 {[%clk 0:00:13]}  Rh3 {[%clk 0:00:13]} 57. Bc8 {[%clk 0:00:11]}  Rxh4 {[%clk 0:00:09]} 58. Kg3 {[%clk 0:00:12]}  Rg4+ {[%clk 0:00:08]} 59. Kf3 {[%clk 0:00:13]}  Rb4 {[%clk 0:00:05]} 60. Bxf5 {[%clk 0:00:12]}  h5 {[%clk 0:00:05]} 61. Bd7 {[%clk 0:00:12]}  Rc4 {[%clk 0:00:03]} 62. Kg3 {[%clk 0:00:12]}  Rc5 {[%clk 0:00:04]} 63. Kh4 {[%clk 0:00:12]}  Ke7 {[%clk 0:00:04]} 64. Kg3 {[%clk 0:00:12]}  Kf6 {[%clk 0:00:05]} 65. Kh4 {[%clk 0:00:13]}  Kg6 {[%clk 0:00:05]} 66. Be8+ {[%clk 0:00:13]}  Kh6 {[%clk 0:00:05]} 67. Bd7 {[%clk 0:00:13]}  Rc4+ {[%clk 0:00:05]} 68. Kh3 {[%clk 0:00:13]}  Kg5 {[%clk 0:00:05]} 69. Kg3 {[%clk 0:00:13]}  h4+ {[%clk 0:00:06]} 70. Kh3 {[%clk 0:00:14]}  Rc3+ {[%clk 0:00:06]} 71. Kh2 {[%clk 0:00:15]}  Kf4 {[%clk 0:00:07]} 72. Kg2 {[%clk 0:00:14]}  Kg5 {[%clk 0:00:04]} 73. Kh2 {[%clk 0:00:14]}  Rc5 {[%clk 0:00:05]} 74. Kh3 {[%clk 0:00:14]}  Rc4 {[%clk 0:00:04]} 75. Kh2 {[%clk 0:00:15]}  Rc3 {[%clk 0:00:05]} 76. Kg2 {[%clk 0:00:15]}  Kf6 {[%clk 0:00:05]} 77. Kh2 {[%clk 0:00:15]}  Ke5 {[%clk 0:00:06]} 78. Kg2 {[%clk 0:00:15]}  Kd6 {[%clk 0:00:05]} 79. Kh2 {[%clk 0:00:16]}  Kc7 {[%clk 0:00:06]} 80. Kg2 {[%clk 0:00:15]}  Rg3+ {[%clk 0:00:06]} 81. Kh2 {[%clk 0:00:16]}  Kd8 {[%clk 0:00:07]} 82. Be6 {[%clk 0:00:14]}  Ke7 {[%clk 0:00:08]} 83. Bd7 {[%clk 0:00:15]}  Kd6 {[%clk 0:00:08]} 84. Be8 {[%clk 0:00:15]}  Rg8 {[%clk 0:00:05]} 85. Bd7 {[%clk 0:00:14]}  Rg7 {[%clk 0:00:05]} 86. Kh3 {[%clk 0:00:14]}  Rh7 {[%clk 0:00:06]} 87. Be8 {[%clk 0:00:12]}  Kc7 {[%clk 0:00:05]} 88. Bg6 {[%clk 0:00:12]}  Rg7 {[%clk 0:00:05]} 89. Be4 {[%clk 0:00:12]}  Re7 {[%clk 0:00:05]} 90. Bg2 {[%clk 0:00:12]}  Re3+ {[%clk 0:00:04]} 91. Kxh4 {[%clk 0:00:12]}  Re2 {[%clk 0:00:05]} 92. Bf3 {[%clk 0:00:12]}  Re8 {[%clk 0:00:05]} 93. Kg3 {[%clk 0:00:12]}  Rf8 {[%clk 0:00:06]} 94. Kf2 {[%clk 0:00:12]}  Rg8 {[%clk 0:00:07]} 95. Ke3 {[%clk 0:00:13]}  Rf8 {[%clk 0:00:08]} 96. Be4 {[%clk 0:00:13]}  Re8 {[%clk 0:00:08]} 97. Kf4 {[%clk 0:00:13]}  Rd8 {[%clk 0:00:09]} 98. Bf3 {[%clk 0:00:13]}  Rb8 {[%clk 0:00:10]} 99. Be4 {[%clk 0:00:14]}  Rb6 {[%clk 0:00:11]} 100. Bf3 {[%clk 0:00:14]}  Rb4+ {[%clk 0:00:11]} 101. Be4 {[%clk 0:00:15]}  Rb2 {[%clk 0:00:12]} 102. Ke5 {[%clk 0:00:15]}  Rb8 {[%clk 0:00:12]} 103. Bd5 {[%clk 0:00:15]}  Rd8 {[%clk 0:00:13]} 104. Be4 {[%clk 0:00:15]}  Re8+ {[%clk 0:00:12]} 105. Kf4 {[%clk 0:00:16]}  Kd6 {[%clk 0:00:12]} 106. Kf3 {[%clk 0:00:15]}  Ke5 {[%clk 0:00:11]} 107. Bd3 {[%clk 0:00:15]}  Kd5 {[%clk 0:00:08]} 108. Bb5 {[%clk 0:00:14]}  Kc5 {[%clk 0:00:08]} 109. Ba4 {[%clk 0:00:14]}  Ra8 {[%clk 0:00:08]} 110. c7 {[%clk 0:00:14]}  Rc8 {[%clk 0:00:08]} 111. Bc2 {[%clk 0:00:13]}  Rxc7 {[%clk 0:00:08]} 112. Be4 {[%clk 0:00:13]}  Kd4 {[%clk 0:00:09]} 113. Bf5 {[%clk 0:00:13]}  Ke5 {[%clk 0:00:08]} 114. Kg4 {[%clk 0:00:13]}  Rg7+ {[%clk 0:00:08]} 115. Kh5 {[%clk 0:00:10]}  Kxf5 {[%clk 0:00:08]} 0-1


[Site "https://www.chess.com"]

[Event "Titled Tuesday Blitz December 13 Late 2022"]
[White "Jarocka, Liwia"]
[Black "Korchmar, Vasiliy"]
[WhiteFideId "21807558"]
[BlackFideId "24131750"]
[WhiteElo "2406"]
[BlackElo "2744"]
[Result "0-1"]
[Round "01"]
[TimeControl "180+1"]
[Date "2022.12.14"]
[WhiteClock "0:00:05"]
[BlackClock "0:00:35"]

1. e4 {[%clk 0:03:00]}  c5 {[%clk 0:03:00]} 2. Nf3 {[%clk 0:03:00]}  d6 {[%clk 0:03:00]} 3. d4 {[%clk 0:03:01]}  cxd4 {[%clk 0:03:01]} 4. Nxd4 {[%clk 0:03:01]}  Nf6 {[%clk 0:03:02]} 5. Nc3 {[%clk 0:03:01]}  Nc6 {[%clk 0:03:02]} 6. Bg5 {[%clk 0:03:01]}  Bd7 {[%clk 0:03:02]} 7. Qd2 {[%clk 0:02:59]}  a6 {[%clk 0:03:03]} 8. O-O-O {[%clk 0:02:58]}  e6 {[%clk 0:03:03]} 9. f4 {[%clk 0:02:57]}  Be7 {[%clk 0:03:03]} 10. Kb1 {[%clk 0:02:56]}  b5 {[%clk 0:03:01]} 11. Bxb5 {[%clk 0:01:53]}  axb5 {[%clk 0:02:57]} 12. Ndxb5 {[%clk 0:01:54]}  O-O {[%clk 0:02:48]} 13. Nxd6 {[%clk 0:01:54]}  Qa5 {[%clk 0:02:05]} 14. Bxf6 {[%clk 0:01:37]}  Bxf6 {[%clk 0:02:06]} 15. e5 {[%clk 0:01:37]}  Be7 {[%clk 0:01:42]} 16. Nb7 {[%clk 0:01:32]}  Qb6 {[%clk 0:01:29]} 17. Qxd7 {[%clk 0:01:01]}  Ba3 {[%clk 0:01:29]} 18. b3 {[%clk 0:00:56]}  Ra7 {[%clk 0:01:29]} 19. Qd3 {[%clk 0:00:26]}  Rxb7 {[%clk 0:01:28]} 20. Rhe1 {[%clk 0:00:19]}  Qa5 {[%clk 0:01:27]} 21. Ne2 {[%clk 0:00:17]}  Ra8 {[%clk 0:01:14]} 22. Qc4 {[%clk 0:00:13]}  Bb4 {[%clk 0:01:11]} 23. a4 {[%clk 0:00:12]}  Bxe1 {[%clk 0:01:01]} 24. Qxc6 {[%clk 0:00:12]}  Rbb8 {[%clk 0:00:57]} 25. Nd4 {[%clk 0:00:09]}  Bc3 {[%clk 0:00:36]} 26. Nb5 {[%clk 0:00:09]}  Rxb5 {[%clk 0:00:36]} 27. Qxb5 {[%clk 0:00:05]}  Qxb5 {[%clk 0:00:35]} 0-1


[Site "https://www.chess.com"]

[Event "Titled Tuesday Blitz December 13 Late 2022"]
[White "Kanyamarala, Tarun"]
[Black "Samsonkin, Artiom"]
[WhiteFideId "45004714"]
[BlackFideId "13503111"]
[WhiteElo "2305"]
[BlackElo "2524"]
[Result "0-1"]
[Round "01"]
[TimeControl "180+1"]
[Date "2022.12.14"]
[WhiteClock "0:00:07"]
[BlackClock "0:00:23"]

1. e4 {[%clk 0:02:57]}  c5 {[%clk 0:02:58]} 2. Nf3 {[%clk 0:02:57]}  d6 {[%clk 0:02:57]} 3. Nc3 {[%clk 0:02:55]}  Nf6 {[%clk 0:02:57]} 4. e5 {[%clk 0:02:42]}  dxe5 {[%clk 0:02:56]} 5. Nxe5 {[%clk 0:02:40]}  Nfd7 {[%clk 0:02:57]} 6. Nf3 {[%clk 0:02:38]}  Nc6 {[%clk 0:02:57]} 7. Bb5 {[%clk 0:02:38]}  g6 {[%clk 0:02:45]} 8. d4 {[%clk 0:02:34]}  cxd4 {[%clk 0:02:44]} 9. Nxd4 {[%clk 0:02:31]}  Bg7 {[%clk 0:02:31]} 10. Nxc6 {[%clk 0:02:26]}  bxc6 {[%clk 0:02:32]} 11. Bxc6 {[%clk 0:02:26]}  Rb8 {[%clk 0:02:32]} 12. O-O {[%clk 0:02:25]}  O-O {[%clk 0:02:32]} 13. Ba4 {[%clk 0:02:18]}  Qa5 {[%clk 0:01:52]} 14. Bb3 {[%clk 0:02:05]}  Nc5 {[%clk 0:01:46]} 15. Bd2 {[%clk 0:02:03]}  Qa6 {[%clk 0:01:36]} 16. Re1 {[%clk 0:01:56]}  e6 {[%clk 0:01:35]} 17. Be3 {[%clk 0:01:47]}  Qc6 {[%clk 0:01:26]} 18. Qg4 {[%clk 0:01:36]}  Bb7 {[%clk 0:01:15]} 19. Rad1 {[%clk 0:01:20]}  h5 {[%clk 0:01:11]} 20. Qh3 {[%clk 0:01:11]}  Nxb3 {[%clk 0:01:04]} 21. cxb3 {[%clk 0:01:08]}  a6 {[%clk 0:00:58]} 22. Rc1 {[%clk 0:01:08]}  Rfd8 {[%clk 0:00:51]} 23. Bf4 {[%clk 0:01:01]}  Rbc8 {[%clk 0:00:48]} 24. f3 {[%clk 0:00:58]}  Rd3 {[%clk 0:00:43]} 25. Na4 {[%clk 0:00:28]}  Qd7 {[%clk 0:00:37]} 26. Qg3 {[%clk 0:00:17]}  Rxc1 {[%clk 0:00:36]} 27. Rxc1 {[%clk 0:00:17]}  Rd1+ {[%clk 0:00:35]} 28. Kf2 {[%clk 0:00:09]}  Bc6 {[%clk 0:00:20]} 29. Rxd1 {[%clk 0:00:08]}  Qxd1 {[%clk 0:00:21]} 30. Be3 {[%clk 0:00:08]}  Bb5 {[%clk 0:00:21]} 31. Qb8+ {[%clk 0:00:07]}  Kh7 {[%clk 0:00:22]} 32. h3 {[%clk 0:00:07]}  Qe2+ {[%clk 0:00:22]} 33. Kg3 {[%clk 0:00:07]}  Qxe3 {[%clk 0:00:23]} 0-1


[Site "https://www.chess.com"]

[Event "Titled Tuesday Blitz December 13 Late 2022"]
[White "Kanyamarala, Trisha"]
[Black "Milikow, Yoav"]
[WhiteFideId "45004722"]
[BlackFideId "2822237"]
[WhiteElo "2412"]
[BlackElo "2762"]
[Result "0-1"]
[Round "01"]
[TimeControl "180+1"]
[Date "2022.12.14"]
[WhiteClock "0:00:02"]
[BlackClock "0:00:18"]

1. c4 {[%clk 0:02:51]}  e5 {[%clk 0:03:00]} 2. Nc3 {[%clk 0:02:51]}  Bb4 {[%clk 0:03:00]} 3. Nd5 {[%clk 0:02:51]}  Be7 {[%clk 0:02:59]} 4. g3 {[%clk 0:02:50]}  Nf6 {[%clk 0:02:58]} 5. Nxe7 {[%clk 0:02:49]}  Qxe7 {[%clk 0:02:59]} 6. Bg2 {[%clk 0:02:49]}  O-O {[%clk 0:02:59]} 7. d3 {[%clk 0:02:49]}  c6 {[%clk 0:02:56]} 8. Nf3 {[%clk 0:02:43]}  d5 {[%clk 0:02:43]} 9. O-O {[%clk 0:02:43]}  dxc4 {[%clk 0:02:34]} 10. dxc4 {[%clk 0:02:42]}  Rd8 {[%clk 0:02:35]} 11. Qc2 {[%clk 0:02:41]}  Na6 {[%clk 0:02:33]} 12. a3 {[%clk 0:02:33]}  e4 {[%clk 0:02:26]} 13. Ng5 {[%clk 0:02:30]}  Bf5 {[%clk 0:02:22]} 14. Qc3 {[%clk 0:02:11]}  h6 {[%clk 0:02:04]} 15. Nh3 {[%clk 0:02:09]}  Nc7 {[%clk 0:01:58]} 16. Be3 {[%clk 0:01:53]}  c5 {[%clk 0:01:35]} 17. b4 {[%clk 0:01:46]}  b6 {[%clk 0:01:30]} 18. Rfd1 {[%clk 0:01:42]}  Rxd1+ {[%clk 0:01:13]} 19. Rxd1 {[%clk 0:01:41]}  Rd8 {[%clk 0:01:12]} 20. Rb1 {[%clk 0:01:32]}  Ne6 {[%clk 0:01:10]} 21. Nf4 {[%clk 0:01:26]}  Nd4 {[%clk 0:01:10]} 22. Bf1 {[%clk 0:01:23]}  Kh7 {[%clk 0:01:02]} 23. bxc5 {[%clk 0:01:23]}  bxc5 {[%clk 0:01:02]} 24. Kg2 {[%clk 0:00:58]}  g5 {[%clk 0:00:52]} 25. Nd5 {[%clk 0:00:48]}  Nxd5 {[%clk 0:00:52]} 26. cxd5 {[%clk 0:00:48]}  Rxd5 {[%clk 0:00:53]} 27. Qc4 {[%clk 0:00:48]}  Qe6 {[%clk 0:00:50]} 28. Rb7 {[%clk 0:00:47]}  Bh3+ {[%clk 0:00:35]} 29. Kg1 {[%clk 0:00:45]}  Rd7 {[%clk 0:00:32]} 30. Qxe6 {[%clk 0:00:32]}  Bxe6 {[%clk 0:00:32]} 31. Rxd7 {[%clk 0:00:22]}  Bxd7 {[%clk 0:00:33]} 32. Bd2 {[%clk 0:00:21]}  Bb5 {[%clk 0:00:33]} 33. Bc3 {[%clk 0:00:19]}  f5 {[%clk 0:00:25]} 34. e3 {[%clk 0:00:18]}  Nf3+ {[%clk 0:00:23]} 35. Kg2 {[%clk 0:00:18]}  Bxf1+ {[%clk 0:00:18]} 36. Kxf1 {[%clk 0:00:19]}  Kg6 {[%clk 0:00:19]} 37. Ke2 {[%clk 0:00:20]}  Kf7 {[%clk 0:00:18]} 38. h3 {[%clk 0:00:20]}  Ke6 {[%clk 0:00:16]} 39. g4 {[%clk 0:00:20]}  Ng1+ {[%clk 0:00:15]} 40. Kf1 {[%clk 0:00:20]}  Nxh3 {[%clk 0:00:15]} 41. Kg2 {[%clk 0:00:19]}  fxg4 {[%clk 0:00:15]} 42. Kg3 {[%clk 0:00:20]}  Kf5 {[%clk 0:00:15]} 43. Bg7 {[%clk 0:00:19]}  h5 {[%clk 0:00:15]} 44. Bf8 {[%clk 0:00:18]}  h4+ {[%clk 0:00:15]} 45. Kg2 {[%clk 0:00:17]}  c4 {[%clk 0:00:16]} 46. Bc5 {[%clk 0:00:17]}  a6 {[%clk 0:00:16]} 47. Bd4 {[%clk 0:00:16]}  a5 {[%clk 0:00:16]} 48. a4 {[%clk 0:00:15]}  Ke6 {[%clk 0:00:15]} 49. Bc3 {[%clk 0:00:15]}  Kd5 {[%clk 0:00:16]} 50. Bxa5 {[%clk 0:00:15]}  Kc5 {[%clk 0:00:17]} 51. Bc3 {[%clk 0:00:15]}  Kb6 {[%clk 0:00:17]} 52. Kh2 {[%clk 0:00:14]}  Nxf2 {[%clk 0:00:17]} 53. Kg2 {[%clk 0:00:12]}  g3 {[%clk 0:00:16]} 54. a5+ {[%clk 0:00:10]}  Kb5 {[%clk 0:00:16]} 55. Bf6 {[%clk 0:00:10]}  Ng4 {[%clk 0:00:16]} 56. Bxg5 {[%clk 0:00:10]}  c3 {[%clk 0:00:16]} 57. Be7 {[%clk 0:00:06]}  c2 {[%clk 0:00:16]} 58. Ba3 {[%clk 0:00:06]}  Nxe3+ {[%clk 0:00:17]} 59. Kh3 {[%clk 0:00:06]}  g2 {[%clk 0:00:17]} 60. Kh2 {[%clk 0:00:05]}  h3 {[%clk 0:00:18]} 61. Kg1 {[%clk 0:00:06]}  Ng4 {[%clk 0:00:18]} 62. Bc1 {[%clk 0:00:04]}  e3 {[%clk 0:00:18]} 63. a6 {[%clk 0:00:02]}  Kxa6 {[%clk 0:00:18]} 0-1


[Site "https://www.chess.com"]

[Event "Titled Tuesday Blitz December 13 Late 2022"]
[White "Kim, Sergey"]
[Black "Wieczorek, Zbigniew"]
[WhiteFideId "13700570"]
[BlackFideId "1102001"]
[WhiteElo "2592"]
[BlackElo "2230"]
[Result "1-0"]
[Round "01"]
[TimeControl "180+1"]
[Date "2022.12.14"]
[WhiteClock "0:00:36"]
[BlackClock "0:00:41"]

1. d4 {[%clk 0:02:59]}  g6 {[%clk 0:02:59]} 2. c4 {[%clk 0:02:59]}  Bg7 {[%clk 0:02:59]} 3. Nc3 {[%clk 0:02:59]}  d6 {[%clk 0:03:00]} 4. e4 {[%clk 0:02:59]}  Nf6 {[%clk 0:03:00]} 5. Nge2 {[%clk 0:02:59]}  O-O {[%clk 0:03:00]} 6. Ng3 {[%clk 0:02:59]}  c5 {[%clk 0:02:58]} 7. d5 {[%clk 0:02:59]}  e6 {[%clk 0:02:58]} 8. Be2 {[%clk 0:02:59]}  exd5 {[%clk 0:02:59]} 9. cxd5 {[%clk 0:02:59]}  a6 {[%clk 0:02:59]} 10. a4 {[%clk 0:02:58]}  h5 {[%clk 0:02:58]} 11. Bg5 {[%clk 0:02:55]}  Nbd7 {[%clk 0:02:55]} 12. O-O {[%clk 0:02:54]}  Qc7 {[%clk 0:02:52]} 13. Qd2 {[%clk 0:02:53]}  Nh7 {[%clk 0:02:51]} 14. Bh4 {[%clk 0:02:53]}  f6 {[%clk 0:02:45]} 15. f4 {[%clk 0:02:52]}  Re8 {[%clk 0:02:31]} 16. Qc2 {[%clk 0:02:42]}  Ndf8 {[%clk 0:02:29]} 17. h3 {[%clk 0:02:15]}  g5 {[%clk 0:02:08]} 18. Bxh5 {[%clk 0:02:13]}  Re7 {[%clk 0:02:08]} 19. e5 {[%clk 0:02:01]}  gxh4 {[%clk 0:02:04]} 20. Nge4 {[%clk 0:01:46]}  fxe5 {[%clk 0:01:53]} 21. f5 {[%clk 0:01:46]}  Bf6 {[%clk 0:01:44]} 22. Bg6 {[%clk 0:01:44]}  Rg7 {[%clk 0:01:40]} 23. Bh5 {[%clk 0:01:27]}  b6 {[%clk 0:01:35]} 24. Qe2 {[%clk 0:01:24]}  Qe7 {[%clk 0:01:33]} 25. Bg4 {[%clk 0:01:16]}  Nd7 {[%clk 0:01:25]} 26. Bh5 {[%clk 0:01:12]}  Ng5 {[%clk 0:01:23]} 27. Bg6 {[%clk 0:01:11]}  Nxe4 {[%clk 0:01:11]} 28. Nxe4 {[%clk 0:01:10]}  Nf8 {[%clk 0:01:11]} 29. Qh5 {[%clk 0:01:08]}  Bd7 {[%clk 0:01:08]} 30. Ra3 {[%clk 0:01:01]}  Be8 {[%clk 0:01:07]} 31. g4 {[%clk 0:01:01]}  Nxg6 {[%clk 0:00:47]} 32. fxg6 {[%clk 0:00:59]}  Rxg6 {[%clk 0:00:46]} 33. Nxf6+ {[%clk 0:00:46]}  Rxf6 {[%clk 0:00:43]} 34. Qg5+ {[%clk 0:00:46]}  Kf7 {[%clk 0:00:41]} 35. Raf3 {[%clk 0:00:36]} 1-0


[Site "https://www.chess.com"]

[Event "Titled Tuesday Blitz December 13 Late 2022"]
[White "Kravtsiv, Martyn"]
[Black "Fernandez Garcia, Gumersindo"]
[WhiteFideId "14113147"]
[BlackFideId "24516740"]
[WhiteElo "2831"]
[BlackElo "2441"]
[Result "1-0"]
[Round "01"]
[TimeControl "180+1"]
[Date "2022.12.14"]
[WhiteClock "0:00:39"]
[BlackClock "0:00:16"]

1. e4 {[%clk 0:03:00]}  c5 {[%clk 0:02:58]} 2. Nf3 {[%clk 0:03:00]}  e6 {[%clk 0:02:58]} 3. d4 {[%clk 0:02:59]}  cxd4 {[%clk 0:02:58]} 4. Nxd4 {[%clk 0:02:59]}  Nf6 {[%clk 0:02:59]} 5. Nc3 {[%clk 0:02:58]}  Nc6 {[%clk 0:03:00]} 6. Ndb5 {[%clk 0:02:56]}  Bb4 {[%clk 0:02:59]} 7. a3 {[%clk 0:02:53]}  Bxc3+ {[%clk 0:02:59]} 8. Nxc3 {[%clk 0:02:53]}  d5 {[%clk 0:02:59]} 9. exd5 {[%clk 0:02:53]}  exd5 {[%clk 0:02:59]} 10. Bd3 {[%clk 0:02:53]}  O-O {[%clk 0:02:59]} 11. O-O {[%clk 0:02:53]}  Bg4 {[%clk 0:02:59]} 12. f3 {[%clk 0:02:47]}  Bh5 {[%clk 0:02:59]} 13. Ne2 {[%clk 0:02:42]}  Bg6 {[%clk 0:02:55]} 14. Nf4 {[%clk 0:02:37]}  Bxd3 {[%clk 0:02:47]} 15. Nxd3 {[%clk 0:02:37]}  Re8 {[%clk 0:02:44]} 16. Bf4 {[%clk 0:02:35]}  d4 {[%clk 0:02:33]} 17. Qd2 {[%clk 0:02:34]}  Nd5 {[%clk 0:02:31]} 18. Rae1 {[%clk 0:02:34]}  Nxf4 {[%clk 0:02:26]} 19. Qxf4 {[%clk 0:02:33]}  Qd5 {[%clk 0:02:20]} 20. b3 {[%clk 0:02:13]}  Rac8 {[%clk 0:02:09]} 21. h4 {[%clk 0:02:07]}  h6 {[%clk 0:02:09]} 22. Kh2 {[%clk 0:02:05]}  Rcd8 {[%clk 0:02:06]} 23. Qc7 {[%clk 0:02:03]}  Rxe1 {[%clk 0:02:04]} 24. Rxe1 {[%clk 0:02:02]}  Qd6+ {[%clk 0:02:02]} 25. Qxd6 {[%clk 0:02:02]}  Rxd6 {[%clk 0:02:03]} 26. Re8+ {[%clk 0:02:01]}  Kh7 {[%clk 0:02:03]} 27. b4 {[%clk 0:01:56]}  Rd7 {[%clk 0:01:55]} 28. Rc8 {[%clk 0:01:55]}  a6 {[%clk 0:01:51]} 29. Kg3 {[%clk 0:01:50]}  Kg6 {[%clk 0:01:51]} 30. Kf2 {[%clk 0:01:44]}  Kf6 {[%clk 0:01:46]} 31. Nc5 {[%clk 0:01:43]}  Re7 {[%clk 0:01:43]} 32. Nxa6 {[%clk 0:01:43]}  Na7 {[%clk 0:01:36]} 33. Rc4 {[%clk 0:01:39]}  bxa6 {[%clk 0:01:35]} 34. Rxd4 {[%clk 0:01:39]}  Nb5 {[%clk 0:01:33]} 35. Rf4+ {[%clk 0:01:39]}  Ke6 {[%clk 0:01:32]} 36. a4 {[%clk 0:01:38]}  Nd6 {[%clk 0:01:32]} 37. c4 {[%clk 0:01:30]}  a5 {[%clk 0:01:26]} 38. c5 {[%clk 0:01:28]}  Nb7 {[%clk 0:01:22]} 39. c6 {[%clk 0:01:24]}  Nd6 {[%clk 0:01:20]} 40. b5 {[%clk 0:01:23]}  Rc7 {[%clk 0:01:18]} 41. Rd4 {[%clk 0:01:22]}  Rc8 {[%clk 0:01:13]} 42. g4 {[%clk 0:01:20]}  Ke5 {[%clk 0:01:11]} 43. Ke3 {[%clk 0:01:19]}  h5 {[%clk 0:01:09]} 44. Kd3 {[%clk 0:01:05]}  g6 {[%clk 0:01:06]} 45. Kc3 {[%clk 0:00:58]}  f5 {[%clk 0:01:02]} 46. gxh5 {[%clk 0:00:56]}  gxh5 {[%clk 0:01:02]} 47. Rd1 {[%clk 0:00:56]}  Nb7 {[%clk 0:00:40]} 48. Kc4 {[%clk 0:00:51]}  Kf4 {[%clk 0:00:24]} 49. Rd7 {[%clk 0:00:49]}  Nd8 {[%clk 0:00:23]} 50. Rxd8 {[%clk 0:00:41]}  Rxd8 {[%clk 0:00:21]} 51. c7 {[%clk 0:00:40]}  Rc8 {[%clk 0:00:15]} 52. b6 {[%clk 0:00:39]}  Ke5 {[%clk 0:00:16]} 53. Kc5 {[%clk 0:00:39]}  Ke6 {[%clk 0:00:16]} 54. Kc6 {[%clk 0:00:39]}  Ke7 {[%clk 0:00:16]} 55. b7 {[%clk 0:00:39]} 1-0


[Site "https://www.chess.com"]

[Event "Titled Tuesday Blitz December 13 Late 2022"]
[White "Kujawski, Adam"]
[Black "Gorodetzky, David"]
[WhiteFideId "1100920"]
[BlackFideId "2813416"]
[WhiteElo "2443"]
[BlackElo "2833"]
[Result "0-1"]
[Round "01"]
[TimeControl "180+1"]
[Date "2022.12.14"]
[WhiteClock "0:00:11"]
[BlackClock "0:02:27"]

1. e4 {[%clk 0:02:59]}  e6 {[%clk 0:02:55]} 2. d4 {[%clk 0:02:59]}  d5 {[%clk 0:02:56]} 3. Nc3 {[%clk 0:02:58]}  dxe4 {[%clk 0:02:55]} 4. Nxe4 {[%clk 0:02:58]}  Nd7 {[%clk 0:02:55]} 5. Nf3 {[%clk 0:02:57]}  Ngf6 {[%clk 0:02:56]} 6. Nxf6+ {[%clk 0:02:58]}  Nxf6 {[%clk 0:02:57]} 7. c3 {[%clk 0:02:58]}  a6 {[%clk 0:02:57]} 8. Bd3 {[%clk 0:02:51]}  c5 {[%clk 0:02:57]} 9. O-O {[%clk 0:02:50]}  cxd4 {[%clk 0:02:57]} 10. Nxd4 {[%clk 0:02:50]}  Bd6 {[%clk 0:02:58]} 11. Bg5 {[%clk 0:02:48]}  h6 {[%clk 0:02:56]} 12. Bh4 {[%clk 0:02:47]}  Qc7 {[%clk 0:02:48]} 13. Bg3 {[%clk 0:02:45]}  Bxg3 {[%clk 0:02:46]} 14. hxg3 {[%clk 0:02:08]}  b6 {[%clk 0:02:40]} 15. Re1 {[%clk 0:02:06]}  Bb7 {[%clk 0:02:39]} 16. Nxe6 {[%clk 0:01:39]}  fxe6 {[%clk 0:02:39]} 17. Bg6+ {[%clk 0:01:40]}  Ke7 {[%clk 0:02:32]} 18. Qe2 {[%clk 0:01:12]}  Qc6 {[%clk 0:02:31]} 19. f3 {[%clk 0:01:05]}  Rhd8 {[%clk 0:02:32]} 20. Kh2 {[%clk 0:00:39]}  Rd6 {[%clk 0:02:31]} 21. Rad1 {[%clk 0:00:25]}  Rxd1 {[%clk 0:02:28]} 22. Qxd1 {[%clk 0:00:24]}  Rd8 {[%clk 0:02:28]} 23. Qe2 {[%clk 0:00:21]}  Rd6 {[%clk 0:02:28]} 24. Qe3 {[%clk 0:00:15]}  Qc5 {[%clk 0:02:28]} 25. Qf4 {[%clk 0:00:11]}  Qg5 {[%clk 0:02:27]} 0-1


[Site "https://www.chess.com"]